fUSD/lending_fUSD_20250811
["ID","MTS","AMOUNT","RATE_DAILY","PERIOD"]
[378509283,1754890097677,6066.67,0.00030136,120]
[378509284,1754890097977,400.0,0.00030136,120]
[378509287,1754890098888,592.95,0.00030136,120]
[378509288,1754890098934,-97.97211304,0.00015716,2]
[378509289,1754890098963,-204.05577392,0.00015716,2]
[378509290,1754890099132,150.94361144,0.00030137,120]
[378509291,1754890099219,400.0,0.00030136,120]
[378509292,1754890099551,2120.32,0.00030136,120]
[378509293,1754890099618,812.23,0.00030136,120]
[378509294,1754890099918,1363.59,0.00030136,120]
[378509295,1754890100568,2274.48,0.00030136,120]
[378509296,1754890101144,4021.82701403,0.00012,30]
[378509297,1754890101722,551.43,0.00030136,120]
[378509298,1754890101984,400.41475505,0.00030136,120]
[378509299,1754890102066,2865.7,0.00030136,120]
[378509300,1754890102416,400.0,0.00030136,120]
[378509301,1754890103105,400.0,0.00030136,120]
[378509302,1754890104140,400.0,0.00030136,120]
[378509303,1754890105442,400.0,0.00030136,120]
[378509304,1754890105507,786.04,0.00030136,120]
[378509305,1754890106625,400.95343807,0.00030136,120]
[378509306,1754890106763,400.0,0.00030136,120]
[378509307,1754890107097,-300.0,0.00015817,2]
[378509308,1754890107143,-672.25,0.00015818,2]
[378509309,1754890107355,1147.75,0.00030136,120]
[378509310,1754890107559,404.55063894,0.00030136,120]
[378509312,1754890107698,400.0,0.00030136,120]
[378509321,1754890110114,803.51,0.00030136,120]
[378509324,1754890110832,400.0,0.00030136,120]
[378509325,1754890110928,400.0,0.00030136,120]
[378509326,1754890110987,400.0,0.00030136,120]
[378509327,1754890111057,406.56047495,0.00030136,120]
[378509329,1754890111542,400.0,0.00030136,120]
[378509330,1754890111944,1707.55,0.00030136,120]
[378509331,1754890112466,400.0,0.00030136,120]
[378509332,1754890112534,1979.32,0.00030136,120]
[378509333,1754890112612,400.64037143,0.00030136,120]
[378509335,1754890113051,400.0,0.00030136,120]
[378509336,1754890113131,1000.0,0.00030136,120]
[378509338,1754890113773,1722.78,0.00030136,120]
[378509342,1754890114700,4939.79,0.00030136,120]
[378509344,1754890114981,516.31822468,0.00030136,120]
[378509345,1754890115050,628.46,0.00030136,120]
[378509347,1754890115134,400.0,0.00030136,120]
[378509348,1754890115209,400.0,0.00030136,120]
[378509349,1754890115273,400.0,0.00030136,120]
[378509350,1754890116291,-400.0,0.00015818,2]
[378509351,1754890117122,1851.04,0.00030136,120]
[378509352,1754890117202,470.33,0.00030136,120]
[378509354,1754890118065,345.0,0.0003,120]
[378509355,1754890118168,2809.18,0.00030136,120]
[378509356,1754890119232,553.26,0.00030136,120]
[378509357,1754890119332,1958.15,0.00030136,120]
[378509358,1754890119398,1397.57,0.00030136,120]
[378509359,1754890119650,834.93,0.00030136,120]
[378509360,1754890120104,400.0,0.00030136,120]
[378509361,1754890120186,1087.1,0.00030136,120]
[378509362,1754890120940,403.42453905,0.00030136,120]
[378509363,1754890121011,1923.68,0.00030136,120]
[378509364,1754890121076,1546.84,0.00030136,120]
[378509365,1754890121147,2283.33,0.00030136,120]
[378509366,1754890121278,1539.13,0.00030136,120]
[378509367,1754890121702,1052.13,0.00030136,120]
[378509368,1754890121764,1003.75,0.00030136,120]
[378509369,1754890122172,2535.71,0.00030136,120]
[378509370,1754890122350,400.0,0.00030136,120]
[378509371,1754890122530,400.0,0.00030136,120]
[378509372,1754890122752,400.0,0.00030136,120]
[378509373,1754890123746,-400.0,0.00015818,2]
[378509374,1754890124601,6211.00363362,0.00013368,2]
[378509375,1754890125631,400.0,0.00030136,120]
[378509376,1754890125991,400.0,0.00030136,120]
[378509377,1754890126054,1365.0,0.0003013,120]
[378509378,1754890126672,988.27,0.00030136,120]
[378509379,1754890127430,2077.96,0.00030136,120]
[378509380,1754890127534,400.0,0.00030136,120]
[378509381,1754890127595,3001.53,0.00030136,120]
[378509382,1754890127673,400.0,0.00030136,120]
[378509383,1754890127800,400.0,0.00030136,120]
[378509384,1754890128145,7268.1189521,0.0001,2]
[378509386,1754890128597,961.89,0.00030136,120]
[378509389,1754890129426,178.99622036,0.00028,120]
[378509390,1754890129490,450.93400909,0.0003013,120]
[378509392,1754890129566,400.0,0.00030136,120]
[378509395,1754890130033,1385.74,0.00030136,120]
[378509400,1754890131387,3478.17,0.00030136,120]
[378509402,1754890131424,-379.22141111,0.00015818,2]
[378509404,1754890131794,400.0,0.00030136,120]
[378509405,1754890131897,5346.18,0.00030136,120]
[378509407,1754890131963,464.15149189,0.00030136,120]
[378509408,1754890132008,250.0,0.00015,2]
[378509410,1754890132396,667.49,0.00030136,120]
[378509415,1754890133339,473.7326058,0.00030136,120]
[378509417,1754890133685,400.0,0.00030136,120]
[378509419,1754890134004,923.53,0.00030136,120]
[378509423,1754890134986,154.91014133,0.00030136,120]
[378509424,1754890135177,400.0,0.00030136,120]
[378509425,1754890135264,404.8419443,0.00030136,120]
[378509426,1754890136245,2006.77,0.00030136,120]
[378509427,1754890136610,400.0,0.00030136,120]
[378509428,1754890136717,400.0,0.00030136,120]
[378509429,1754890137224,400.0,0.00030136,120]
[378509430,1754890137461,633.92,0.00030136,120]
[378509431,1754890138017,400.0,0.00030136,120]
[378509432,1754890138950,998.31,0.00030136,120]
[378509433,1754890140670,1274.2,0.00030136,120]
[378509434,1754890141136,775.67,0.00030136,120]
[378509437,1754890141745,400.0,0.00030136,120]
[378509440,1754890142289,1178.04,0.00030136,120]
[378509441,1754890142442,4733.97,0.00030136,120]
[378509442,1754890142803,986.76,0.00030136,120]
[378509443,1754890142983,400.0,0.00030136,120]
[378509444,1754890143104,400.0,0.00030136,120]
[378509445,1754890143685,2447.23,0.00030136,120]
[378509446,1754890143967,24522.80104577,0.00015924,7]
[378509447,1754890144177,588.28,0.00030136,120]
[378509448,1754890144877,400.0,0.00030136,120]
[378509449,1754890145046,400.0,0.00030136,120]
[378509450,1754890145200,3709.85,0.00030136,120]
[378509451,1754890145368,1465.28,0.00030136,120]
[378509452,1754890145467,1277.25,0.00030136,120]
[378509454,1754890146133,411.06453621,0.00030136,120]
[378509457,1754890147190,401.05143,0.00030136,120]
[378509458,1754890147984,1574.79,0.00030136,120]
[378509459,1754890148060,6741.12,0.00030136,120]
[378509460,1754890148687,2611.0,0.00030136,120]
[378509465,1754890149248,487.96,0.00030136,120]
[378509466,1754890149313,1256.2,0.00030136,120]
[378509467,1754890149495,400.0,0.00030136,120]
[378509468,1754890150570,400.0,0.00030136,120]
[378509469,1754890150804,600.29,0.00030136,120]
[378509470,1754890151992,4440.86,0.00030136,120]
[378509471,1754890152297,857.46,0.00030136,120]
[378509474,1754890153037,400.0,0.00030136,120]
[378509475,1754890153105,1375.86,0.00030136,120]
[378509476,1754890153205,400.0,0.00030136,120]
[378509477,1754890153273,952.12,0.00030136,120]
[378509479,1754890153892,400.0,0.00030136,120]
[378509480,1754890154240,2950.97,0.00030136,120]
[378509481,1754890154382,401.03034303,0.00030136,120]
[378509482,1754890155146,400.0,0.00030136,120]
[378509484,1754890155740,400.0,0.00030136,120]
[378509486,1754890155966,400.0,0.00030136,120]
[378509490,1754890157620,892.54,0.00030136,120]
[378509491,1754890157725,4164.36,0.00030136,120]
[378509493,1754890157922,479.87,0.00030136,120]
[378509495,1754890158497,400.0,0.00030136,120]
[378509496,1754890158714,830.73,0.00030136,120]
[378509497,1754890159404,400.0,0.00030136,120]
[378509498,1754890159769,1843.52,0.00030136,120]
[378509499,1754890159991,400.0,0.00030136,120]
[378509500,1754890160164,469.48,0.00030136,120]
[378509501,1754890160783,400.0,0.00030136,120]
[378509502,1754890161034,1876.56,0.00030136,120]
[378509503,1754890162081,1016.54,0.00030136,120]
[378509504,1754890162432,532.72,0.00030136,120]
[378509505,1754890162493,1472.06,0.00030136,120]
[378509506,1754890162840,1454.89,0.00030136,120]
[378509507,1754890162911,3333.25,0.00030136,120]
[378509508,1754890163935,890.43,0.00030136,120]
[378509509,1754890164001,401.41774251,0.00030136,120]
[378509510,1754890164071,401.2067351,0.00030136,120]
[378509511,1754890164887,824.71,0.00030136,120]
[378509512,1754890164988,7665.37,0.00030136,120]
[378509513,1754890165442,719.78,0.00030136,120]
[378509514,1754890165914,400.0,0.00030136,120]
[378509515,1754890166305,400.0,0.00030136,120]
[378509516,1754890166379,791.13,0.00030136,120]
[378509517,1754890166685,878.01,0.00030136,120]
[378509518,1754890167023,400.0,0.00030136,120]
[378509519,1754890167371,400.0,0.00030136,120]
[378509520,1754890168581,4255.82,0.00030136,120]
[378509521,1754890168934,400.0,0.00030136,120]
[378509522,1754890169315,964.40490004,0.00029041,120]
[378509523,1754890169474,400.0,0.00030136,120]
[378509524,1754890170601,402.91738767,0.00030136,120]
[378509525,1754890170689,1773.92,0.00030136,120]
[378509526,1754890170801,1515.82,0.00030136,120]
[378509527,1754890170913,400.0,0.00030136,120]
[378509528,1754890171667,639.29,0.00030136,120]
[378509529,1754890171732,400.0,0.00030136,120]
[378509530,1754890171810,5114.53,0.00030136,120]
[378509531,1754890171939,400.0,0.00030136,120]
[378509532,1754890172670,401.59392018,0.00030136,120]
[378509533,1754890173003,2279.59,0.00030136,120]
[378509534,1754890174173,801.6,0.00030136,120]
[378509538,1754890174463,404.26041613,0.00030136,120]
[378509539,1754890174521,400.0,0.00030136,120]
[378509541,1754890175207,400.0,0.00030136,120]
[378509542,1754890175259,1956.61,0.00030136,120]
[378509544,1754890175927,400.0,0.00030136,120]
[378509545,1754890176007,400.0,0.00030136,120]
[378509547,1754890176778,400.0,0.00030136,120]
[378509548,1754890177429,5801.99,0.00030136,120]
[378509549,1754890179212,400.0,0.00030136,120]
[378509550,1754890179264,229.49525388,0.00030136,120]
[378509551,1754890179367,400.0,0.00030136,120]
[378509552,1754890179449,400.0,0.00030136,120]
[378509553,1754890179522,400.0,0.00030136,120]
[378509554,1754890181770,400.0,0.00030136,120]
[378509556,1754890181850,400.0,0.00030136,120]
[378509559,1754890182421,622.61717546,0.00030136,120]
[378509560,1754890182516,3991.17,0.00030136,120]
[378509563,1754890182931,501.51396863,0.00030136,120]
[378509564,1754890183054,400.0,0.00030136,120]
[378509566,1754890183320,702.98,0.00030136,120]
[378509569,1754890183425,645.29,0.00030136,120]
[378509573,1754890183880,400.0,0.00030136,120]
[378509576,1754890184430,431.67833088,0.00030136,120]
[378509580,1754890185220,400.0,0.00030136,120]
[378509581,1754890185994,6460.24,0.00030136,120]
[378509582,1754890186447,3555.27,0.00030136,120]
[378509583,1754890186995,2703.48,0.00030136,120]
[378509584,1754890187105,400.0,0.00030136,120]
[378509585,1754890187309,2015.21,0.00030136,120]
[378509586,1754890187894,400.0,0.00030136,120]
[378509587,1754890188081,485.71,0.00030136,120]
[378509588,1754890188149,400.0,0.00030136,120]
[378509589,1754890188205,4102.05,0.00030136,120]
[378509590,1754890188265,2693.68,0.00030136,120]
[378509591,1754890188342,416.59,0.00030136,120]
[378509593,1754890189016,1625.76,0.00030136,120]
[378509599,1754890190175,401.3193679,0.00030136,120]
[378509600,1754890190482,400.0,0.00030136,120]
[378509601,1754890190708,1754.75,0.00030136,120]
[378509602,1754890191995,400.0,0.00030136,120]
[378509603,1754890192727,402.67320549,0.00030136,120]
[378509604,1754890193338,-32.57627331,0.00015818,2]
[378509605,1754890193379,-216.2302756,0.0001582,2]
[378509606,1754890193437,4551.16,0.00030136,120]
[378509607,1754890193673,1920.01,0.00030136,120]
[378509608,1754890193861,400.0,0.00030136,120]
[378509609,1754890193921,1920.01,0.00030136,120]
[378509610,1754890194166,1920.01,0.00030136,120]
[378509611,1754890194424,1920.01,0.00030136,120]
[378509612,1754890194668,1920.01,0.00030136,120]
[378509613,1754890194745,400.0,0.00030136,120]
[378509614,1754890194929,1920.01,0.00030136,120]
[378509615,1754890195145,1920.01,0.00030136,120]
[378509616,1754890195293,1318.16,0.00030136,120]
[378509617,1754890195371,1920.01,0.00030136,120]
[378509618,1754890195650,1920.01,0.00030136,120]
[378509619,1754890195893,1920.01,0.00030136,120]
[378509621,1754890195973,1426.06,0.00030136,120]
[378509624,1754890196494,1920.01,0.00030136,120]
[378509625,1754890196590,1920.01,0.00030136,120]
[378509627,1754890196673,400.0,0.00030136,120]
[378509628,1754890196759,1920.01,0.00030136,120]
[378509629,1754890196951,1920.01,0.00030136,120]
[378509630,1754890197172,1920.01,0.00030136,120]
[378509631,1754890197259,912.82,0.00030136,120]
[378509632,1754890197362,1920.01,0.00030136,120]
[378509633,1754890197418,401.74444445,0.00030136,120]
[378509634,1754890197616,1920.01,0.00030136,120]
[378509635,1754890197869,1920.01,0.00030136,120]
[378509636,1754890198110,1920.01,0.00030136,120]
[378509637,1754890198164,4536.72,0.00030136,120]
[378509638,1754890198349,1920.01,0.00030136,120]
[378509639,1754890198601,998.96,0.00030136,120]
[378509640,1754890198662,1920.01,0.00030136,120]
[378509641,1754890198823,1920.01,0.00030136,120]
[378509642,1754890199039,4347.69,0.00030136,120]
[378509643,1754890199093,483.11,0.00030136,120]
[378509644,1754890199165,1920.01,0.00030136,120]
[378509648,1754890199309,1920.21166308,0.00030136,120]
[378509649,1754890200874,400.0,0.00030136,120]
[378509650,1754890200965,1447.94,0.00030136,120]
[378509651,1754890202478,654.73,0.00030136,120]
[378509652,1754890202646,937.62,0.00015863,14]
[378509653,1754890203359,400.0,0.00030136,120]
[378509655,1754890204071,401.32256567,0.00030136,120]
[378509657,1754890204776,1537.7006355,0.00030137,120]
[378509659,1754890205924,2272.78,0.00030136,120]
[378509660,1754890206090,403.43258121,0.00030136,120]
[378509661,1754890206357,689.79,0.00030136,120]
[378509662,1754890206394,507.67139202,0.000165,5]
[378509663,1754890206545,3194.37,0.00030136,120]
[378509664,1754890207077,2823.46,0.00030136,120]
[378509665,1754890207385,1126.1,0.00030136,120]
[378509666,1754890207482,675.45,0.00030136,120]
[378509670,1754890208519,447.64,0.00030136,120]
[378509677,1754890209810,400.0,0.00030136,120]
[378509679,1754890210152,446.28280575,0.00030136,120]
[378509680,1754890210213,673.68,0.00030136,120]
[378509681,1754890211517,6611.06,0.00030136,120]
[378509685,1754890213300,400.0,0.00030136,120]
[378509686,1754890213360,403.82290777,0.00030136,120]
[378509688,1754890213432,436.92,0.00030136,120]
[378509689,1754890213513,1182.54,0.00030136,120]
[378509691,1754890214264,-260.35858889,0.00015507,2]
[378509694,1754890215996,400.0,0.00030136,120]
[378509695,1754890216438,400.0,0.00030136,120]
[378509697,1754890216755,538.52,0.00030136,120]
[378509699,1754890217371,400.0,0.00030136,120]
[378509700,1754890217757,679.5,0.00030136,120]
[378509701,1754890218093,1730.26,0.00030136,120]
[378509702,1754890218356,400.0,0.00030136,120]
[378509703,1754890219354,1490.94,0.00030136,120]
[378509704,1754890220266,437.01,0.00030136,120]
[378509705,1754890220354,498.56,0.00030136,120]
[378509706,1754890220876,1172.61,0.00030136,120]
[378509710,1754890223014,3061.27,0.00030136,120]
[378509712,1754890223521,400.0,0.00030136,120]
[378509713,1754890223604,400.0,0.00030136,120]
[378509715,1754890223883,400.0,0.00030136,120]
[378509716,1754890224162,400.0,0.00030136,120]
[378509717,1754890224310,1648.82,0.00030136,120]
[378509718,1754890225500,400.0,0.00030136,120]
[378509719,1754890225578,400.0,0.00030136,120]
[378509720,1754890225657,400.0,0.00030136,120]
[378509721,1754890226009,2144.62,0.00030136,120]
[378509722,1754890226560,500.0,0.00030136,120]
[378509723,1754890226749,680.95,0.00030136,120]
[378509724,1754890228119,150.5,0.0002639,120]
[378509725,1754890228579,1150.74,0.00030136,120]
[378509726,1754890228762,150.5,0.0002638,120]
[378509727,1754890228910,2536.99,0.00030136,120]
[378509728,1754890229180,216.15,0.0002637,120]
[378509729,1754890229246,2111.59,0.00030136,120]
[378509730,1754890229865,5560.24,0.00030136,120]
[378509731,1754890230194,11169.13,0.00030136,120]
[378509732,1754890230257,245.72862016,0.00030136,120]
[378509733,1754890231326,680.0,0.00030136,120]
[378509735,1754890231866,400.0,0.00030136,120]
[378509749,1754890232122,-106.99141111,0.00015507,2]
[378509750,1754890232131,-1667.81740882,0.0001582,2]
[378509751,1754890232141,-1190.46713556,0.00015821,2]
[378509752,1754890232186,-654.6974508,0.00015821,2]
[378509753,1754890232197,-38.88309806,0.00015821,2]
[378509754,1754890232206,-1754.35036921,0.00015823,2]
[378509755,1754890232246,-129.69731521,0.00015823,2]
[378509756,1754890232255,-769.66069238,0.00015825,2]
[378509757,1754890232310,-1114.38699204,0.00015825,2]
[378509758,1754890232319,-1200.0,0.00015826,2]
[378509759,1754890232329,-162.42590018,0.00015827,2]
[378509760,1754890232340,-1721.62178424,0.00015827,2]
[378509761,1754890232349,-300.0,0.00015827,2]
[378509762,1754890232359,-300.0,0.00015827,2]
[378509763,1754890232368,-1884.04768442,0.00015828,2]
[378509764,1754890232377,-1063.03312701,0.0001583,2]
[378509765,1754890232389,-136.96687299,0.0001583,2]
[378509766,1754890232398,-1663.03312701,0.0001583,2]
[378509767,1754890232410,-221.01455741,0.0001583,2]
[378509768,1754890232419,-1078.98544259,0.00015832,2]
[378509769,1754890232430,-289.99060142,0.00015832,2]
[378509770,1754890232522,-515.07164041,0.00015832,2]
[378509771,1754890232531,-207.0259277,0.00015835,2]
[378509772,1754890232540,-319.19548954,0.00015835,2]
[378509773,1754890232549,-647.03217183,0.00015835,2]
[378509774,1754890232558,-2962.99155103,0.00015871,2]
[378509775,1754890232568,-11407.75466594,0.00015871,2]
[378509776,1754890232579,-1387.0736984,0.00015871,2]
[378509777,1754890232590,-54841.50380054,0.00015871,2]
[378509778,1754890232600,-258.0,0.0001588,2]
[378509779,1754890232610,-737.96,0.00015884,2]
[378509780,1754890232619,-300.0,0.00015888,2]
[378509781,1754890232628,-513.25595759,0.00015889,2]
[378509782,1754890232637,-16480.07372041,0.0001589,2]
[378509783,1754890232733,1203.81,0.00030136,120]
[378509784,1754890232944,414.74598641,0.00030136,120]
[378509785,1754890234063,400.0,0.00030136,120]
[378509786,1754890235101,1153.88,0.00030136,120]
[378509787,1754890235505,400.0,0.00030136,120]
[378509788,1754890235576,400.0,0.00030136,120]
[378509789,1754890235940,1777.27,0.00030136,120]
[378509790,1754890236183,400.0,0.00030136,120]
[378509791,1754890236260,400.0,0.00030136,120]
[378509794,1754890237797,400.0,0.00030136,120]
[378509795,1754890237922,3636.63,0.00030136,120]
[378509796,1754890238153,-296.35780666,0.0001587,2]
[378509797,1754890238162,-500.0,0.0001587,2]
[378509798,1754890238172,-359.27917031,0.0001587,2]
[378509799,1754890238181,-413.02844685,0.0001587,2]
[378509800,1754890238191,-500.0,0.0001587,2]
[378509801,1754890238201,-151.61332491,0.0001587,2]
[378509803,1754890238211,-500.0,0.0001587,2]
[378509805,1754890238222,-500.0,0.0001587,2]
[378509806,1754890238232,-500.0,0.0001587,2]
[378509808,1754890238242,-14632.92627959,0.0001589,2]
[378509811,1754890238251,-3069.21363913,0.0001589,2]
[378509827,1754890238399,-4764.78636087,0.0001589,2]
[378509828,1754890238408,-15580.0,0.0001589,2]
[378509830,1754890238418,-252.293,0.00015899,2]
[378509832,1754890238427,-4175.082,0.00015899,2]
[378509834,1754890238437,-250.0,0.000159,2]
[378509835,1754890238446,-250.0,0.000159,2]
[378509837,1754890238455,-250.0,0.000159,2]
[378509838,1754890238465,-250.0,0.000159,2]
[378509840,1754890238475,-250.0,0.000159,2]
[378509842,1754890238485,-250.0,0.000159,2]
[378509844,1754890238494,-250.0,0.000159,2]
[378509846,1754890238504,-250.0,0.000159,2]
[378509848,1754890238515,-250.0,0.000159,2]
[378509850,1754890238524,-250.0,0.000159,2]
[378509852,1754890238534,-250.0,0.000159,2]
[378509854,1754890238544,-250.0,0.000159,2]
[378509856,1754890238553,-250.0,0.000159,2]
[378509858,1754890238563,-250.0,0.000159,2]
[378509860,1754890238573,-250.0,0.000159,2]
[378509861,1754890238582,-250.0,0.000159,2]
[378509863,1754890238591,-250.0,0.000159,2]
[378509865,1754890238601,-250.0,0.000159,2]
[378509867,1754890238610,-250.0,0.000159,2]
[378509869,1754890238619,-250.0,0.000159,2]
[378509870,1754890238629,-274.6,0.000159,2]
[378509872,1754890238638,-7907.76946576,0.000159,2]
[378509874,1754890238648,-148495.6219782,0.000159,2]
[378509876,1754890238660,-350.0,0.00015909,2]
[378509878,1754890238670,-1114.27050973,0.00015915,2]
[378509880,1754890238679,-1114.27050973,0.00015915,2]
[378509882,1754890238689,-1114.27050973,0.00015915,2]
[378509884,1754890238698,-500.0,0.00015916,2]
[378509886,1754890238708,-257.17268592,0.00015916,2]
[378509887,1754890238717,-305.57586512,0.00015916,2]
[378509889,1754890238727,-151.0,0.00015916,2]
[378509891,1754890238740,-1199.20597015,0.00015916,2]
[378509893,1754890238749,-500.0,0.00015916,2]
[378509895,1754890238758,-500.0,0.00015916,2]
[378509897,1754890238768,-500.0,0.00015916,2]
[378509898,1754890238777,-500.0,0.00015916,2]
[378509900,1754890238787,-500.0,0.00015916,2]
[378509903,1754890238801,-500.0,0.00015916,2]
[378509905,1754890238812,-151.0,0.00015916,2]
[378509907,1754890238822,-500.0,0.00015916,2]
[378509909,1754890238832,-151.0,0.00015916,2]
[378509911,1754890238843,-500.0,0.00015916,2]
[378509913,1754890238853,-151.0,0.00015916,2]
[378509914,1754890238863,-151.0,0.00015916,2]
[378509916,1754890238873,-168.74801089,0.00015916,2]
[378509918,1754890238883,-151.0,0.00015916,2]
[378509920,1754890238894,-151.0,0.00015916,2]
[378509922,1754890238904,-151.0,0.00015916,2]
[378509923,1754890238914,-151.0,0.00015916,2]
[378509925,1754890238924,-151.0,0.00015916,2]
[378509927,1754890238935,-151.0,0.00015916,2]
[378509929,1754890238946,-151.0,0.00015916,2]
[378509931,1754890238956,-151.0,0.00015916,2]
[378509933,1754890238965,-151.0,0.00015916,2]
[378509935,1754890238975,-151.0,0.00015916,2]
[378509937,1754890238987,-151.0,0.00015916,2]
[378509939,1754890238997,-151.0,0.00015916,2]
[378509941,1754890239008,-151.0,0.00015916,2]
[378509943,1754890239018,-151.0,0.00015916,2]
[378509945,1754890239029,-151.0,0.00015916,2]
[378509947,1754890239039,-151.0,0.00015916,2]
[378509948,1754890239049,-500.0,0.00015916,2]
[378509950,1754890239059,-500.0,0.00015916,2]
[378509952,1754890239069,-500.0,0.00015916,2]
[378509954,1754890239080,-500.0,0.00015916,2]
[378509956,1754890239090,-500.0,0.00015916,2]
[378509958,1754890239100,-500.0,0.00015916,2]
[378509960,1754890239111,-500.0,0.00015916,2]
[378509962,1754890239120,-207.05550822,0.00015916,2]
[378509964,1754890239130,-500.0,0.00015916,2]
[378509966,1754890239140,-500.0,0.00015916,2]
[378509968,1754890239149,-1258.0,0.00015916,2]
[378509970,1754890239159,-671.27430589,0.00015924,2]
[378509972,1754890239168,-666.0,0.00015924,2]
[378509974,1754890239179,-151.0,0.00015925,2]
[378509977,1754890239200,-211.48624307,0.00015925,2]
[378509979,1754890239210,-35193769.70909788,0.00015925,2]
[378509980,1754890239220,-500.0,0.00015971,2]
[378509982,1754890239230,-500.0,0.00015973,2]
[378509984,1754890239240,-500.0,0.00015973,2]
[378509986,1754890239250,-514.94763564,0.00015973,2]
[378509988,1754890239259,-500.0,0.00015973,2]
[378509990,1754890239269,-500.0,0.00015973,2]
[378509992,1754890239278,-500.0,0.00015973,2]
[378510007,1754890239424,-500.0,0.00015973,2]
[378510009,1754890239434,-500.0,0.00015973,2]
[378510011,1754890239443,-500.0,0.00015973,2]
[378510013,1754890239452,-500.0,0.00015973,2]
[378510015,1754890239461,-168.96716816,0.00015973,2]
[378510017,1754890239470,-500.0,0.00015973,2]
[378510019,1754890239479,-500.0,0.00015973,2]
[378510021,1754890239493,-172.3988379,0.00015973,2]
[378510023,1754890239503,-500.0,0.00015973,2]
[378510025,1754890239513,-500.0,0.00015973,2]
[378510027,1754890239522,-262.35744288,0.00015973,2]
[378510029,1754890239532,-500.0,0.00015973,2]
[378510031,1754890239541,-485.42614294,0.00015973,2]
[378510033,1754890239550,-175.36610357,0.00015973,2]
[378510035,1754890239559,-500.0,0.00015973,2]
[378510037,1754890239568,-158.08340633,0.00015973,2]
[378510039,1754890239577,-500.0,0.00015973,2]
[378510040,1754890239587,-500.0,0.00015973,2]
[378510041,1754890239596,-628.88554076,0.00015973,2]
[378510043,1754890239605,-518.84867813,0.00015973,2]
[378510045,1754890239614,-500.0,0.00015973,2]
[378510047,1754890239623,-500.0,0.00015973,2]
[378510049,1754890239633,-500.0,0.00015973,2]
[378510050,1754890239642,-500.0,0.00015973,2]
[378510052,1754890239651,-500.0,0.00015973,2]
[378510054,1754890239664,-500.0,0.00015973,2]
[378510056,1754890239673,-500.0,0.00015973,2]
[378510058,1754890239683,-313.3053806,0.00015973,2]
[378510060,1754890239692,-500.0,0.00015973,2]
[378510062,1754890239702,-506.39178164,0.00015973,2]
[378510063,1754890239711,-500.0,0.00015973,2]
[378510065,1754890239721,-500.0,0.00015973,2]